[Event "*** Titled Tuesday Blitz"]
[Site "Chess.com"]
[Date "2021.03.09"]
[Round "11"]
[White "Homyakova_Elena"]
[Black "LileKoridze"]
[Result "1-0"]
[WhiteElo "2299"]
[BlackElo "2415"]
[TimeControl "180+1"]
[EndTime "12:09:52 PST"]
[Termination "Homyakova_Elena won by resignation"]

1. e4 {[%clk 0:03:00.9]} 1... c5 {[%clk 0:02:59.1]} 2. Nf3 {[%clk 0:03:00.5]}
2... d6 {[%clk 0:02:59.5]} 3. d4 {[%clk 0:03:00.8]} 3... cxd4 {[%clk 0:03:00]}
4. Nxd4 {[%clk 0:03:01.7]} 4... Nf6 {[%clk 0:03:00.4]} 5. Nc3 {[%clk 0:03:01.9]}
5... Nc6 {[%clk 0:03:00.9]} 6. Be2 {[%clk 0:03:01.2]} 6... e5 {[%clk 0:03:01]}
7. Nf3 {[%clk 0:03:00.5]} 7... Be7 {[%clk 0:03:01]} 8. O-O {[%clk 0:03:00.3]}
8... O-O {[%clk 0:03:01.2]} 9. h3 {[%clk 0:03:00.8]} 9... Be6 {[%clk 0:03:01.6]}
10. Re1 {[%clk 0:03:01.4]} 10... a6 {[%clk 0:03:01.7]} 11. Bf1 {[%clk
0:03:01.7]} 11... Qd7 {[%clk 0:02:59.4]} 12. a4 {[%clk 0:03:01.3]} 12... Rfd8
{[%clk 0:02:59.3]} 13. Re2 {[%clk 0:02:58.1]} 13... Nb4 {[%clk 0:02:57.4]} 14.
Rd2 {[%clk 0:02:57.1]} 14... Qc6 {[%clk 0:02:55.5]} 15. Ng5 {[%clk 0:02:37.5]}
15... d5 {[%clk 0:02:51.4]} 16. exd5 {[%clk 0:02:25.8]} 16... Nbxd5 {[%clk
0:02:30.6]} 17. Nxd5 {[%clk 0:02:00.9]} 17... Bxd5 {[%clk 0:02:25.5]} 18. b3
{[%clk 0:01:41.8]} 18... h6 {[%clk 0:02:22.8]} 19. c4 {[%clk 0:01:35.4]} 19...
hxg5 {[%clk 0:02:12.5]} 20. cxd5 {[%clk 0:01:34.7]} 20... Nxd5 {[%clk
0:02:12.8]} 21. Bc4 {[%clk 0:01:13.1]} 21... Nf4 {[%clk 0:02:09.8]} 22. Qg4
{[%clk 0:01:03.3]} 22... Bf6 {[%clk 0:01:35.9]} 23. Rxd8+ {[%clk 0:00:54]} 23...
Rxd8 {[%clk 0:01:35.2]} 24. Be3 {[%clk 0:00:51.6]} 24... e4 {[%clk 0:01:04.1]}
25. Rc1 {[%clk 0:00:47.1]} 25... Qd6 {[%clk 0:01:01.5]} 26. h4 {[%clk
0:00:36.5]} 26... Bb2 {[%clk 0:00:56.5]} 27. Rb1 {[%clk 0:00:32.6]} 27... Be5
{[%clk 0:00:50.4]} 28. hxg5 {[%clk 0:00:26.7]} 28... g6 {[%clk 0:00:40]} 29. Rc1
{[%clk 0:00:21]} 29... Kg7 {[%clk 0:00:34.1]} 30. g3 {[%clk 0:00:20.2]} 30...
Nd3 {[%clk 0:00:32.1]} 31. Rd1 {[%clk 0:00:19.9]} 31... Qc6 {[%clk 0:00:25.6]}
32. Qe2 {[%clk 0:00:12.6]} 32... Qd6 {[%clk 0:00:21.6]} 33. Qg4 {[%clk
0:00:12.2]} 33... Rd7 {[%clk 0:00:14]} 34. Qxe4 {[%clk 0:00:10.5]} 34... Bxg3
{[%clk 0:00:12.2]} 35. Rxd3 {[%clk 0:00:09.7]} 35... Bxf2+ {[%clk 0:00:12.2]}
36. Bxf2 {[%clk 0:00:08.6]} 36... Qc7 {[%clk 0:00:12.3]} 37. Rxd7 {[%clk
0:00:08]} 37... Qxd7 {[%clk 0:00:13.2]} 38. Qd4+ {[%clk 0:00:08.4]} 1-0

[Event "*** Titled Tuesday Blitz"]
[Site "Chess.com"]
[Date "2021.03.09"]
[Round "11"]
[White "SilviusTiberius"]
[Black "NoGalloNoParty"]
[Result "1-0"]
[WhiteElo "2522"]
[BlackElo "2340"]
[TimeControl "180+1"]
[EndTime "12:09:53 PST"]
[Termination "SilviusTiberius won on time"]

1. e4 {[%clk 0:03:00.9]} 1... c5 {[%clk 0:02:59.1]} 2. Nf3 {[%clk 0:03:00.9]}
2... e6 {[%clk 0:02:59.4]} 3. d4 {[%clk 0:03:01.3]} 3... cxd4 {[%clk 0:02:59.2]}
4. Nxd4 {[%clk 0:03:01.9]} 4... Nc6 {[%clk 0:02:59.5]} 5. Nc3 {[%clk 0:03:01.8]}
5... Qc7 {[%clk 0:02:58.9]} 6. Be3 {[%clk 0:03:01.3]} 6... a6 {[%clk 0:02:58.6]}
7. Qf3 {[%clk 0:03:00.8]} 7... h5 {[%clk 0:02:55.5]} 8. O-O-O {[%clk 0:02:57.6]}
8... Ne5 {[%clk 0:02:54.8]} 9. Qg3 {[%clk 0:02:53.2]} 9... h4 {[%clk 0:02:52]}
10. Qh3 {[%clk 0:02:49]} 10... Nf6 {[%clk 0:02:51.1]} 11. Be2 {[%clk 0:02:45.8]}
11... b5 {[%clk 0:02:50]} 12. f4 {[%clk 0:02:42.7]} 12... Nc4 {[%clk 0:02:46.6]}
13. Bxc4 {[%clk 0:02:41.8]} 13... Qxc4 {[%clk 0:02:39.3]} 14. e5 {[%clk
0:02:36.3]} 14... b4 {[%clk 0:02:28.8]} 15. Nce2 {[%clk 0:01:53.4]} 15... Nd5
{[%clk 0:02:00.6]} 16. b3 {[%clk 0:01:50.1]} 16... Qc7 {[%clk 0:01:56]} 17. Kb1
{[%clk 0:01:42.9]} 17... Bb7 {[%clk 0:01:52.2]} 18. Bc1 {[%clk 0:01:42]} 18...
Be7 {[%clk 0:01:32.2]} 19. g4 {[%clk 0:01:35.5]} 19... a5 {[%clk 0:01:26.4]} 20.
Rhf1 {[%clk 0:01:26.7]} 20... a4 {[%clk 0:01:24.8]} 21. Bb2 {[%clk 0:00:41.5]}
21... Qa5 {[%clk 0:01:18.7]} 22. f5 {[%clk 0:00:33.1]} 22... axb3 {[%clk
0:01:04.7]} 23. axb3 {[%clk 0:00:34]} 23... Qa2+ {[%clk 0:00:45.2]} 24. Kc1
{[%clk 0:00:33.9]} 24... Bg5+ {[%clk 0:00:44.7]} 25. Rd2 {[%clk 0:00:30.3]}
25... O-O {[%clk 0:00:37.7]} 26. f6 {[%clk 0:00:25]} 26... g6 {[%clk 0:00:35.6]}
27. Nf3 {[%clk 0:00:21]} 27... Bxd2+ {[%clk 0:00:32.5]} 28. Kxd2 {[%clk
0:00:21.9]} 28... Qa7 {[%clk 0:00:29.6]} 29. Bd4 {[%clk 0:00:20.8]} 29... Qa6
{[%clk 0:00:19]} 30. Qxh4 {[%clk 0:00:20.7]} 30... Nc3 {[%clk 0:00:17.3]} 31.
Re1 {[%clk 0:00:13.3]} 31... Ne4+ {[%clk 0:00:06.2]} 32. Ke3 {[%clk 0:00:13.6]}
32... Nd6 {[%clk 0:00:01.9]} 33. Qh6 {[%clk 0:00:11.9]} 33... Ne8 {[%clk
0:00:01.7]} 34. Ng5 {[%clk 0:00:11.5]} 34... Nxf6 {[%clk 0:00:01]} 35. exf6
{[%clk 0:00:11]} 1-0

[Event "*** Titled Tuesday Blitz"]
[Site "Chess.com"]
[Date "2021.03.09"]
[Round "11"]
[White "Ladislav1969"]
[Black "zacachess"]
[Result "0-1"]
[WhiteElo "2340"]
[BlackElo "2488"]
[TimeControl "180+1"]
[EndTime "12:09:53 PST"]
[Termination "zacachess won by resignation"]

1. e4 {[%clk 0:03:00.9]} 1... c5 {[%clk 0:02:59.3]} 2. d4 {[%clk 0:03:01.5]}
2... cxd4 {[%clk 0:02:59]} 3. c3 {[%clk 0:03:02.4]} 3... dxc3 {[%clk 0:02:59.4]}
4. Nxc3 {[%clk 0:03:03.3]} 4... Nc6 {[%clk 0:02:59.8]} 5. Nf3 {[%clk 0:03:03.9]}
5... e6 {[%clk 0:03:00.1]} 6. Bf4 {[%clk 0:03:03.5]} 6... a6 {[%clk 0:02:58.7]}
7. Qd2 {[%clk 0:03:03.4]} 7... Nge7 {[%clk 0:02:58]} 8. Bd6 {[%clk 0:03:02.9]}
8... Ng6 {[%clk 0:02:53.8]} 9. Bxf8 {[%clk 0:03:02]} 9... Nxf8 {[%clk
0:02:53.9]} 10. Be2 {[%clk 0:02:57.7]} 10... Ng6 {[%clk 0:02:53.7]} 11. h4
{[%clk 0:02:57.9]} 11... Nge5 {[%clk 0:02:29.3]} 12. Nxe5 {[%clk 0:02:42.1]}
12... Nxe5 {[%clk 0:02:30.2]} 13. Qd4 {[%clk 0:02:33.8]} 13... f6 {[%clk
0:02:26.7]} 14. f4 {[%clk 0:02:13.5]} 14... Nc6 {[%clk 0:02:24.9]} 15. Qe3
{[%clk 0:02:14.1]} 15... O-O {[%clk 0:02:11]} 16. O-O {[%clk 0:02:14.3]} 16...
b5 {[%clk 0:02:03.2]} 17. Rad1 {[%clk 0:02:09.4]} 17... Qe7 {[%clk 0:01:51.3]}
18. h5 {[%clk 0:02:08.6]} 18... Bb7 {[%clk 0:01:45.1]} 19. h6 {[%clk 0:02:04.7]}
19... g6 {[%clk 0:01:44.6]} 20. Qb6 {[%clk 0:01:59.5]} 20... Rab8 {[%clk
0:01:36.4]} 21. Qc7 {[%clk 0:01:40]} 21... Rfd8 {[%clk 0:01:35.6]} 22. Kh2
{[%clk 0:01:34.1]} 22... Ba8 {[%clk 0:01:13.9]} 23. e5 {[%clk 0:01:07.3]} 23...
f5 {[%clk 0:00:49.2]} 24. Bf3 {[%clk 0:00:48.2]} 24... Rbc8 {[%clk 0:00:30.4]}
25. Qd6 {[%clk 0:00:42.8]} 25... Qh4+ {[%clk 0:00:29.7]} 26. Kg1 {[%clk
0:00:42.6]} 26... Qxh6 {[%clk 0:00:29.2]} 27. Nd5 {[%clk 0:00:39.9]} 27... exd5
{[%clk 0:00:24.2]} 28. Bxd5+ {[%clk 0:00:39.3]} 28... Kh8 {[%clk 0:00:24.4]} 29.
Rf3 {[%clk 0:00:23.2]} 29... Qf8 {[%clk 0:00:22.8]} 30. Bxc6 {[%clk 0:00:05.9]}
30... Qxd6 {[%clk 0:00:18.2]} 31. exd6 {[%clk 0:00:06.8]} 31... Bxc6 {[%clk
0:00:18.2]} 32. Re3 {[%clk 0:00:07.4]} 32... Re8 {[%clk 0:00:18.3]} 33. Rde1
{[%clk 0:00:07.1]} 33... Rxe3 {[%clk 0:00:17.1]} 34. Rxe3 {[%clk 0:00:08]} 34...
Be4 {[%clk 0:00:17.6]} 35. Rc3 {[%clk 0:00:06.4]} 35... Rxc3 {[%clk 0:00:16.5]}
36. bxc3 {[%clk 0:00:05.6]} 36... Kg7 {[%clk 0:00:17.1]} 37. Kf2 {[%clk
0:00:06.5]} 37... Kf7 {[%clk 0:00:17.7]} 38. g3 {[%clk 0:00:07.1]} 38... Ke6
{[%clk 0:00:18.1]} 39. Ke3 {[%clk 0:00:08]} 39... Kxd6 {[%clk 0:00:18.7]} 40.
Kd4 {[%clk 0:00:08.8]} 40... Ke6 {[%clk 0:00:18.3]} 0-1

[Event "*** Titled Tuesday Blitz"]
[Site "Chess.com"]
[Date "2021.03.09"]
[Round "11"]
[White "olksuna"]
[Black "wonderfultime"]
[Result "0-1"]
[WhiteElo "2674"]
[BlackElo "2954"]
[TimeControl "180+1"]
[EndTime "12:09:54 PST"]
[Termination "wonderfultime won on time"]

1. e4 {[%clk 0:03:00.9]} 1... c5 {[%clk 0:03:00]} 2. Nf3 {[%clk 0:03:01.1]} 2...
Nf6 {[%clk 0:02:59.9]} 3. e5 {[%clk 0:03:01.5]} 3... Nd5 {[%clk 0:02:56.7]} 4.
Nc3 {[%clk 0:03:01.9]} 4... e6 {[%clk 0:02:57.3]} 5. Ne4 {[%clk 0:03:02.1]} 5...
f5 {[%clk 0:02:54.1]} 6. Nc3 {[%clk 0:02:59.3]} 6... Ne7 {[%clk 0:02:54.2]} 7.
Nb5 {[%clk 0:02:52]} 7... Ng6 {[%clk 0:02:51.8]} 8. b3 {[%clk 0:02:47.9]} 8...
a6 {[%clk 0:02:51.5]} 9. Nd6+ {[%clk 0:02:47.5]} 9... Bxd6 {[%clk 0:02:51.6]}
10. exd6 {[%clk 0:02:48.4]} 10... Qb6 {[%clk 0:02:51.9]} 11. Bb2 {[%clk
0:02:35.6]} 11... O-O {[%clk 0:02:50.3]} 12. h4 {[%clk 0:02:23.8]} 12... Qxd6
{[%clk 0:02:49]} 13. h5 {[%clk 0:02:22.3]} 13... Nh8 {[%clk 0:02:49.3]} 14. h6
{[%clk 0:02:22.1]} 14... g6 {[%clk 0:02:49.4]} 15. d4 {[%clk 0:01:56.1]} 15...
Nf7 {[%clk 0:02:41.5]} 16. c4 {[%clk 0:01:50.3]} 16... Nc6 {[%clk 0:02:38.7]}
17. Be2 {[%clk 0:01:40.2]} 17... b6 {[%clk 0:02:32.4]} 18. Qd2 {[%clk
0:01:30.5]} 18... cxd4 {[%clk 0:02:16.4]} 19. Nxd4 {[%clk 0:01:27]} 19... e5
{[%clk 0:02:15.5]} 20. Nc2 {[%clk 0:01:03.9]} 20... Qxd2+ {[%clk 0:02:08.3]} 21.
Kxd2 {[%clk 0:01:04.8]} 21... Bb7 {[%clk 0:01:54.1]} 22. Rad1 {[%clk 0:01:03.7]}
22... Rad8 {[%clk 0:01:34.3]} 23. Kc1 {[%clk 0:01:02.4]} 23... f4 {[%clk
0:01:27.3]} 24. Bf3 {[%clk 0:00:59]} 24... d6 {[%clk 0:01:20.3]} 25. Bd5 {[%clk
0:00:54.2]} 25... Na5 {[%clk 0:01:16.2]} 26. g3 {[%clk 0:00:48.1]} 26... fxg3
{[%clk 0:01:07.4]} 27. fxg3 {[%clk 0:00:46.4]} 27... Bxd5 {[%clk 0:01:07.8]} 28.
Rxd5 {[%clk 0:00:46.4]} 28... Nb7 {[%clk 0:01:08.4]} 29. Nb4 {[%clk 0:00:34.2]}
29... Nc5 {[%clk 0:01:03.8]} 30. Nd3 {[%clk 0:00:28.2]} 30... Ne4 {[%clk
0:01:02.2]} 31. g4 {[%clk 0:00:21.4]} 31... Nf6 {[%clk 0:01:00.6]} 32. Nb4
{[%clk 0:00:19]} 32... Nxd5 {[%clk 0:00:54.5]} 33. Nxd5 {[%clk 0:00:19.9]} 33...
Ng5 {[%clk 0:00:53]} 34. Rd1 {[%clk 0:00:18]} 34... b5 {[%clk 0:00:50]} 35. cxb5
{[%clk 0:00:07.4]} 35... axb5 {[%clk 0:00:50.9]} 36. Ba3 {[%clk 0:00:06.8]}
36... Ne4 {[%clk 0:00:46.7]} 37. Bb4 {[%clk 0:00:06.4]} 37... Rf2 {[%clk
0:00:41]} 38. Re1 {[%clk 0:00:06.4]} 38... Nf6 {[%clk 0:00:32.7]} 39. Ne3 {[%clk
0:00:03.4]} 39... Rxa2 {[%clk 0:00:29.9]} 40. g5 {[%clk 0:00:03.5]} 40... Ra1+
{[%clk 0:00:30.2]} 41. Kb2 {[%clk 0:00:03.8]} 41... Rxe1 {[%clk 0:00:30.2]} 42.
Bxe1 {[%clk 0:00:04.7]} 42... Ne4 {[%clk 0:00:29.8]} 0-1

[Event "*** Titled Tuesday Blitz"]
[Site "Chess.com"]
[Date "2021.03.09"]
[Round "11"]
[White "A-S-00"]
[Black "suneebaker"]
[Result "0-1"]
[WhiteElo "2361"]
[BlackElo "2233"]
[TimeControl "180+1"]
[EndTime "12:09:55 PST"]
[Termination "suneebaker won on time"]

1. d4 {[%clk 0:03:00.9]} 1... Nf6 {[%clk 0:02:58.8]} 2. Nf3 {[%clk 0:03:00.5]}
2... e6 {[%clk 0:02:58.7]} 3. c4 {[%clk 0:03:00.5]} 3... b6 {[%clk 0:02:56.9]}
4. Nc3 {[%clk 0:03:00.2]} 4... Bb4 {[%clk 0:02:55.1]} 5. Bg5 {[%clk 0:02:58.7]}
5... h6 {[%clk 0:02:54]} 6. Bh4 {[%clk 0:02:58.3]} 6... Bb7 {[%clk 0:02:49.8]}
7. Qc2 {[%clk 0:02:52.6]} 7... c5 {[%clk 0:02:42.7]} 8. e3 {[%clk 0:02:45.4]}
8... O-O {[%clk 0:02:39.9]} 9. Be2 {[%clk 0:02:42.9]} 9... cxd4 {[%clk
0:02:38.7]} 10. exd4 {[%clk 0:02:37.8]} 10... d5 {[%clk 0:02:38.1]} 11. O-O
{[%clk 0:02:31.1]} 11... dxc4 {[%clk 0:02:36.5]} 12. Rad1 {[%clk 0:02:24.9]}
12... Nbd7 {[%clk 0:02:32.7]} 13. Ne5 {[%clk 0:02:04.1]} 13... Be7 {[%clk
0:02:25.6]} 14. Nxc4 {[%clk 0:01:59.7]} 14... Rc8 {[%clk 0:02:21.8]} 15. Bg3
{[%clk 0:01:48.7]} 15... a6 {[%clk 0:02:02.7]} 16. Nd6 {[%clk 0:01:19.8]} 16...
Bxd6 {[%clk 0:01:59.4]} 17. Bxd6 {[%clk 0:01:19.6]} 17... Re8 {[%clk 0:01:59.9]}
18. Qb3 {[%clk 0:01:10.4]} 18... Nf8 {[%clk 0:01:42.5]} 19. Bg3 {[%clk
0:01:08.4]} 19... Nd5 {[%clk 0:01:38.7]} 20. Ne4 {[%clk 0:01:05]} 20... f5
{[%clk 0:01:29.9]} 21. Nd6 {[%clk 0:01:03.7]} 21... f4 {[%clk 0:01:28.9]} 22.
Nxb7 {[%clk 0:00:34.4]} 22... Qc7 {[%clk 0:01:27.4]} 23. Bxa6 {[%clk 0:00:32.4]}
23... fxg3 {[%clk 0:01:25.3]} 24. fxg3 {[%clk 0:00:21.9]} 24... Ra8 {[%clk
0:01:21.2]} 25. Rc1 {[%clk 0:00:21.4]} 25... Qe7 {[%clk 0:01:13.6]} 26. Qc4
{[%clk 0:00:12.1]} 26... Ne3 {[%clk 0:01:07.4]} 27. Qe2 {[%clk 0:00:07.7]} 27...
Nxf1 {[%clk 0:01:05.8]} 28. Rxf1 {[%clk 0:00:07.5]} 28... Qd7 {[%clk 0:00:57.4]}
29. Bb5 {[%clk 0:00:04.8]} 29... Qxd4+ {[%clk 0:00:56.4]} 30. Kh1 {[%clk
0:00:04.3]} 30... Re7 {[%clk 0:00:50]} 31. Bd3 {[%clk 0:00:03]} 31... Rxb7
{[%clk 0:00:46.6]} 32. Be4 {[%clk 0:00:02.7]} 32... Rba7 {[%clk 0:00:45]} 33.
Bxa8 {[%clk 0:00:01.9]} 33... Rxa8 {[%clk 0:00:43.8]} 34. Qf3 {[%clk 0:00:02.8]}
34... Rd8 {[%clk 0:00:42.9]} 35. Qf7+ {[%clk 0:00:02.9]} 35... Kh8 {[%clk
0:00:42.4]} 36. b3 {[%clk 0:00:03.8]} 36... e5 {[%clk 0:00:38.2]} 37. Qe7 {[%clk
0:00:03.1]} 37... Ng6 {[%clk 0:00:31.8]} 38. Qf7 {[%clk 0:00:02.3]} 38... Kh7
{[%clk 0:00:30.9]} 39. Qe6 {[%clk 0:00:01.2]} 39... e4 {[%clk 0:00:28.9]} 0-1

[Event "*** Titled Tuesday Blitz"]
[Site "Chess.com"]
[Date "2021.03.09"]
[Round "11"]
[White "Sanyura"]
[Black "NiranjanNavalgund"]
[Result "0-1"]
[WhiteElo "2612"]
[BlackElo "2479"]
[TimeControl "180+1"]
[EndTime "12:09:56 PST"]
[Termination "NiranjanNavalgund won by checkmate"]

1. e4 {[%clk 0:03:00.9]} 1... e5 {[%clk 0:02:59.6]} 2. Nf3 {[%clk 0:03:01]} 2...
Nc6 {[%clk 0:02:59.7]} 3. Bb5 {[%clk 0:03:01]} 3... a6 {[%clk 0:03:00]} 4. Ba4
{[%clk 0:03:00.8]} 4... Nf6 {[%clk 0:03:00.5]} 5. O-O {[%clk 0:02:59.9]} 5...
Be7 {[%clk 0:03:00.8]} 6. Re1 {[%clk 0:02:56.5]} 6... b5 {[%clk 0:03:00.8]} 7.
Bb3 {[%clk 0:02:56.9]} 7... d6 {[%clk 0:03:01.7]} 8. c3 {[%clk 0:02:57]} 8...
O-O {[%clk 0:03:00.1]} 9. h3 {[%clk 0:02:56.8]} 9... Nb8 {[%clk 0:03:00.2]} 10.
d4 {[%clk 0:02:56]} 10... Nbd7 {[%clk 0:03:00.6]} 11. Nbd2 {[%clk 0:02:55.9]}
11... Bb7 {[%clk 0:03:00.4]} 12. a3 {[%clk 0:02:56]} 12... c5 {[%clk 0:02:43]}
13. Bc2 {[%clk 0:02:53.1]} 13... Re8 {[%clk 0:02:41.4]} 14. b4 {[%clk
0:02:49.1]} 14... Bf8 {[%clk 0:02:40.3]} 15. Bb2 {[%clk 0:02:48.3]} 15... cxd4
{[%clk 0:02:32.9]} 16. cxd4 {[%clk 0:02:48]} 16... exd4 {[%clk 0:02:32.3]} 17.
Nxd4 {[%clk 0:02:42.3]} 17... d5 {[%clk 0:02:30.3]} 18. exd5 {[%clk 0:01:25.8]}
18... Rxe1+ {[%clk 0:02:29.3]} 19. Qxe1 {[%clk 0:01:26.7]} 19... Bxd5 {[%clk
0:02:29.3]} 20. N2f3 {[%clk 0:01:24.7]} 20... Qb6 {[%clk 0:02:25.9]} 21. Rd1
{[%clk 0:01:22.8]} 21... Re8 {[%clk 0:02:25.8]} 22. Qd2 {[%clk 0:01:23]} 22...
Ne4 {[%clk 0:02:21.2]} 23. Qf4 {[%clk 0:01:09.2]} 23... Ndf6 {[%clk 0:02:15]}
24. Ng5 {[%clk 0:00:29.2]} 24... Bd6 {[%clk 0:02:01.6]} 25. Qh4 {[%clk
0:00:28.9]} 25... h6 {[%clk 0:01:45.9]} 26. Nxe4 {[%clk 0:00:25.4]} 26... Bxe4
{[%clk 0:01:46]} 27. Bb3 {[%clk 0:00:08.9]} 27... Be5 {[%clk 0:01:33.7]} 28. Re1
{[%clk 0:00:05.1]} 28... Bxd4 {[%clk 0:01:29.1]} 29. Bxd4 {[%clk 0:00:04.3]}
29... Qxd4 {[%clk 0:01:29.7]} 30. Qg3 {[%clk 0:00:03.2]} 30... Qd3 {[%clk
0:01:14.2]} 31. Qxd3 {[%clk 0:00:02.9]} 31... Bxd3 {[%clk 0:01:15.1]} 32. Rd1
{[%clk 0:00:03.6]} 32... Bc4 {[%clk 0:01:13.7]} 33. Bc2 {[%clk 0:00:03.2]} 33...
g5 {[%clk 0:01:11.3]} 34. Rd6 {[%clk 0:00:03]} 34... Re6 {[%clk 0:01:11.2]} 35.
Rd8+ {[%clk 0:00:03.3]} 35... Kg7 {[%clk 0:01:11.5]} 36. Ra8 {[%clk 0:00:02.8]}
36... Ne4 {[%clk 0:01:07.7]} 37. Bxe4 {[%clk 0:00:02]} 37... Rxe4 {[%clk
0:01:07.4]} 38. Rxa6 {[%clk 0:00:02.9]} 38... Re1+ {[%clk 0:01:07.4]} 39. Kh2
{[%clk 0:00:03.3]} 39... f5 {[%clk 0:01:06.1]} 40. Ra7+ {[%clk 0:00:03.2]} 40...
Kg6 {[%clk 0:01:06]} 41. Ra6+ {[%clk 0:00:03.6]} 41... Kg7 {[%clk 0:01:06.4]}
42. a4 {[%clk 0:00:04.1]} 42... bxa4 {[%clk 0:01:05.6]} 43. Rxa4 {[%clk
0:00:05]} 43... Rb1 {[%clk 0:01:05.7]} 44. Ra7+ {[%clk 0:00:05.6]} 44... Kf6
{[%clk 0:01:05.5]} 45. Rb7 {[%clk 0:00:06]} 45... h5 {[%clk 0:01:04.1]} 46. Rb6+
{[%clk 0:00:06.6]} 46... Ke5 {[%clk 0:01:04.2]} 47. Rg6 {[%clk 0:00:04.9]} 47...
g4 {[%clk 0:01:04.1]} 48. hxg4 {[%clk 0:00:05.2]} 48... hxg4 {[%clk 0:01:05]}
49. Rb6 {[%clk 0:00:05.7]} 49... f4 {[%clk 0:01:01.8]} 50. Rb8 {[%clk
0:00:05.5]} 50... Rb3 {[%clk 0:01:00.3]} 51. Re8+ {[%clk 0:00:04.8]} 51... Kf5
{[%clk 0:01:00.3]} 52. Rf8+ {[%clk 0:00:04.9]} 52... Kg5 {[%clk 0:01:00.7]} 53.
Rb8 {[%clk 0:00:04.4]} 53... g3+ {[%clk 0:01:01]} 54. fxg3 {[%clk 0:00:04.6]}
54... fxg3+ {[%clk 0:01:01.9]} 55. Kh3 {[%clk 0:00:02.5]} 55... Be6# {[%clk
0:01:01.8]} 0-1

[Event "*** Titled Tuesday Blitz"]
[Site "Chess.com"]
[Date "2021.03.09"]
[Round "11"]
[White "anon219"]
[Black "dozer80"]
[Result "1-0"]
[WhiteElo "2880"]
[BlackElo "2634"]
[TimeControl "180+1"]
[EndTime "12:09:57 PST"]
[Termination "anon219 won by resignation"]

1. e4 {[%clk 0:03:00.9]} 1... c5 {[%clk 0:02:59.6]} 2. Nf3 {[%clk 0:03:00.9]}
2... e6 {[%clk 0:03:00.1]} 3. b3 {[%clk 0:02:59.9]} 3... b6 {[%clk 0:02:59.4]}
4. Bb2 {[%clk 0:03:00.1]} 4... Bb7 {[%clk 0:02:59.2]} 5. Qe2 {[%clk 0:03:00.7]}
5... Nc6 {[%clk 0:02:55.3]} 6. c4 {[%clk 0:02:59.8]} 6... Nge7 {[%clk
0:02:45.2]} 7. g3 {[%clk 0:02:54]} 7... Qc7 {[%clk 0:01:57.3]} 8. Nc3 {[%clk
0:02:51]} 8... a6 {[%clk 0:01:57.4]} 9. Bg2 {[%clk 0:02:51.1]} 9... Nd4 {[%clk
0:01:52.8]} 10. Nxd4 {[%clk 0:02:39.3]} 10... cxd4 {[%clk 0:01:53.7]} 11. Nb1
{[%clk 0:02:39.6]} 11... Nc6 {[%clk 0:01:51.6]} 12. O-O {[%clk 0:02:39.3]} 12...
Be7 {[%clk 0:01:35.1]} 13. d3 {[%clk 0:02:38.5]} 13... O-O {[%clk 0:01:31.7]}
14. Nd2 {[%clk 0:02:37.4]} 14... b5 {[%clk 0:01:19.2]} 15. Rac1 {[%clk
0:02:33.4]} 15... Qb6 {[%clk 0:01:18.5]} 16. f4 {[%clk 0:02:32]} 16... f6 {[%clk
0:01:18.6]} 17. Kh1 {[%clk 0:02:27.3]} 17... Qa5 {[%clk 0:01:14.4]} 18. Nf3
{[%clk 0:02:03.8]} 18... Qxa2 {[%clk 0:01:01.7]} 19. Ra1 {[%clk 0:02:02.8]}
19... Qxb3 {[%clk 0:01:01.8]} 20. Rfb1 {[%clk 0:02:02.7]} 20... Qb4 {[%clk
0:00:29.3]} 21. Ba3 {[%clk 0:01:45.6]} 21... Qxa3 {[%clk 0:00:29.4]} 22. Rxa3
{[%clk 0:01:45.2]} 22... Bxa3 {[%clk 0:00:30.3]} 23. e5 {[%clk 0:01:41.1]} 23...
f5 {[%clk 0:00:30.1]} 24. h4 {[%clk 0:01:34.7]} 24... Be7 {[%clk 0:00:27.5]} 25.
cxb5 {[%clk 0:01:31.7]} 25... axb5 {[%clk 0:00:28.4]} 26. Rxb5 {[%clk 0:01:32]}
26... Ba6 {[%clk 0:00:28.4]} 27. Rb1 {[%clk 0:01:28.6]} 27... Rab8 {[%clk
0:00:27.8]} 28. Ra1 {[%clk 0:01:27.2]} 28... Rb6 {[%clk 0:00:18.9]} 29. Nd2
{[%clk 0:01:24.6]} 29... Rfb8 {[%clk 0:00:15.3]} 30. Kh2 {[%clk 0:01:21.6]}
30... Nb4 {[%clk 0:00:11.4]} 31. Nc4 {[%clk 0:01:19]} 31... Bxc4 {[%clk
0:00:10.4]} 32. dxc4 {[%clk 0:01:19.9]} 32... Bc5 {[%clk 0:00:11]} 33. Ra5
{[%clk 0:01:18.8]} 33... d3 {[%clk 0:00:10.3]} 34. Qd2 {[%clk 0:01:12.2]} 34...
Rc8 {[%clk 0:00:10.1]} 35. h5 {[%clk 0:01:08.3]} 35... h6 {[%clk 0:00:10.2]} 36.
Kh3 {[%clk 0:01:07.7]} 36... Bf8 {[%clk 0:00:10]} 37. Qc3 {[%clk 0:00:52.5]}
37... Rbb8 {[%clk 0:00:08]} 38. g4 {[%clk 0:00:49.8]} 38... fxg4+ {[%clk
0:00:06.9]} 39. Kxg4 {[%clk 0:00:49.9]} 39... Rc7 {[%clk 0:00:07.8]} 40. Ra8
{[%clk 0:00:48.4]} 40... Rxa8 {[%clk 0:00:07.4]} 41. Bxa8 {[%clk 0:00:49.3]}
41... Ra7 {[%clk 0:00:07.9]} 42. Be4 {[%clk 0:00:48]} 42... Ra1 {[%clk
0:00:03.2]} 43. Bxd3 {[%clk 0:00:47.9]} 43... Rg1+ {[%clk 0:00:02.5]} 44. Kh3
{[%clk 0:00:46.1]} 44... Rh1+ {[%clk 0:00:03.4]} 45. Kg2 {[%clk 0:00:45.2]}
45... Rxh5 {[%clk 0:00:03.6]} 46. Be2 {[%clk 0:00:45.6]} 46... Rh4 {[%clk
0:00:04]} 47. Qg3 {[%clk 0:00:41.6]} 47... Rxf4 {[%clk 0:00:03.2]} 48. Qxf4
{[%clk 0:00:41.2]} 48... Nc6 {[%clk 0:00:04.1]} 49. Bh5 {[%clk 0:00:40.8]} 1-0